bitfinex-derivatives/quotes_SOLF0:USTF0_20240815
["timestamp","ask_amount","ask_price","bid_price","bid_amount"]
[1723755945157,0.05285748,140.79,140.77,0.04790823]
[1723755945355,5.38740724,140.81,140.69,8.06268064]
[1723755945558,0.051735,140.79,140.77,0.04781796]
[1723755945765,1.7749,140.8,140.74,1.7757]
[1723755945965,0.0496971,140.79,140.77,0.05282576]
[1723755951366,1.8247971,140.79,140.77,0.05282576]
[1723755952161,0.0496971,140.79,140.77,0.05282576]
[1723755961380,1.7752,140.78,140.77,0.05282576]
[1723755961576,0.0496971,140.79,140.77,0.05282576]
[1723755963376,1.8246971,140.79,140.77,0.05282576]
[1723755963577,0.0496971,140.79,140.77,0.05282576]
[1723755964378,3.59917081,140.83,140.77,0.05282576]
[1723755964578,11.1491,140.89,140.77,0.05282576]
[1723755964776,11.1491,140.89,140.76,1.7753]
[1723755965585,1.82168098,140.84,140.81,0.05340411]
[1723755965776,3.58745175,140.83,140.81,0.05340411]
[1723755967775,0.04718098,140.84,140.81,0.05340411]
[1723755968375,5.39193812,140.84,140.81,0.05340411]
[1723755968583,1.82158098,140.84,140.81,0.05340411]
[1723755968782,3.53484886,140.83,140.81,0.05340411]
[1723755969281,3.61895845,140.84,140.81,0.05340411]
[1723755969482,0.04718098,140.84,140.81,0.05340411]
[1723755970675,0.04718098,140.84,140.81,1.82810411]
[1723755970884,9.82,140.94,140.81,0.05340411]
[1723755971380,9.82,140.94,140.8,9.82]
[1723755971577,1.7736,140.91,140.8,9.82]
[1723755972181,0.05005758,140.87,140.84,1.82654294]
[1723755972385,0.05005758,140.87,140.84,0.05214294]
[1723755972785,1.7737,140.9,140.84,1.7743]
[1723755972986,0.05156105,140.87,140.84,0.05364236]
[1723755973379,47.9799814,140.97,140.82,1.7746]
[1723755973574,1.7739,140.88,140.82,1.7746]
[1723755973780,3.63340186,140.87,140.84,0.05106759]
[1723755973980,0.05417207,140.87,140.84,0.05106759]
[1723755974179,51.53791682,140.97,140.8,9.82]
[1723755974490,0.04803509,140.87,140.84,0.05420834]
[1723755974876,5.35606904,140.88,140.8,9.82]
[1723755975075,0.04882366,140.87,140.84,0.05021163]
[1723755977779,51.53791682,140.97,140.84,0.05021163]
[1723755978193,1.7733,140.93,140.8,9.82]
[1723755978590,51.53791682,140.97,140.8,9.82]
[1723755978790,1.7734,140.92,140.87,1.7739]
[1723755978980,0.04646979,140.9,140.87,0.05237149]
[1723755979187,1.8881,141.0,140.88,1.5998]
[1723755979386,5.43599505,141.0,140.88,1.5998]
[1723755979585,1.8881,141.0,140.89,1.7737]
[1723755979785,5.3937582,141.0,140.89,1.7737]
[1723755979997,9.82,141.03,140.89,1.7737]
[1723755980291,1.7731,140.95,140.89,1.7737]
[1723755980485,5.23657448,140.95,140.89,1.7737]
[1723755980884,1.7729,140.96,140.91,0.04990652]
[1723755981298,0.0528902,140.93,140.88,1.5998]
[1723755981486,0.0528902,140.93,140.92,0.04782142]
[1723755981887,0.0528902,140.93,140.9,1.7736]
[1723755982288,0.0528902,140.93,140.91,0.0504834]
[1723755982990,9.82,141.03,140.91,0.0504834]
[1723755983187,3.58373647,141.03,140.91,0.0504834]
[1723755983382,3.58373647,141.03,140.9,3.59402437]
[1723755983383,50.14910744,141.08,140.9,3.59402437]
[1723755983587,50.14910744,141.08,140.88,11.4198]
[1723755983984,1.7723,141.01,140.88,11.4198]
[1723755984191,50.14910744,141.08,140.88,14.89648454]
[1723755984405,0.04582665,140.99,140.97,0.0501002]
[1723755984590,3.55824691,141.05,140.99,1.7725]
[1723755984894,3.56250234,141.2,140.96,9.82]
[1723755984895,7.106,141.19,140.96,9.82]
[1723755985090,1.3225,141.15,141.06,1.7715]
[1723755985497,1.534,141.18,141.05,3.46179054]
[1723755985694,1.534,141.18,141.05,1.4864]
[1723755985995,1.534,141.18,141.09,0.04500002]
[1723755985996,0.04543955,141.12,141.09,0.04500002]
[1723755986297,3.46604597,141.11,141.09,0.04500002]
[1723755986486,3.52384887,141.11,141.02,9.82]
[1723755986691,1.7714,141.08,140.98,1.4864]
[1723755986890,3.51280421,141.11,140.98,1.4864]
[1723755987192,9.82,141.17,140.98,11.3064]
[1723755987399,1.7714,141.09,140.98,11.3064]
[1723755987696,3.60563442,141.09,141.06,0.05430534]
[1723755987889,0.04924791,141.09,141.06,0.05430534]
[1723755988087,3.5652447,141.09,140.98,1.4864]
[1723755988291,9.82,141.09,140.98,1.4864]
[1723755988491,1.7717,141.06,140.98,3.259]
[1723755988687,13.42351208,141.09,140.98,3.259]
[1723755988891,13.42351208,141.09,140.98,1.4864]
[1723755989099,13.42351208,141.09,140.9,9.82]
[1723755989385,1.3656,141.08,140.91,1.5056]
[1723755989590,1.772,141.03,141.02,0.04700269]
[1723755989903,1.3656,141.08,140.87,2.9876]
[1723755990091,0.56591306,141.07,140.87,2.9876]
[1723755990891,0.56591306,141.07,140.89,1.7737]
[1723755991098,0.04903302,140.98,140.96,0.05213042]
[1723755991293,0.04903302,140.98,140.87,2.9876]
[1723755991689,5.39725533,140.98,140.87,2.9876]
[1723755991901,9.82,141.0,140.87,2.9876]
[1723755992203,1.7729,140.97,140.89,1.7738]
[1723755992495,1.7729,140.97,140.87,2.9876]
[1723755992496,13.37388902,141.0,140.87,2.9876]
[1723755992701,1.773,140.95,140.87,4.7616]
[1723755992892,13.37388902,141.0,140.87,2.9876]
[1723755993101,0.0531324,140.95,140.92,0.05065636]
[1723755999904,0.0531324,140.95,140.81,3.0869]
[1723756000207,1.7735,140.92,140.83,1.7745]
[1723756000415,9.44,140.95,140.82,1.6268]
[1723756000811,0.7117,140.98,140.82,1.6268]
[1723756000996,9.44,140.98,140.82,1.6268]
[1723756001195,0.05284532,140.9,140.87,0.04622523]
[1723756001398,1.7726,140.98,140.9,1.7736]
[1723756001904,1.7728,140.97,140.89,1.7737]
[1723756002105,3.55925706,141.0,140.89,1.7737]
[1723756002402,1.773,140.95,140.87,1.7739]
[1723756002608,0.05437181,140.96,140.93,0.04555976]
[1723756002815,0.673,141.01,140.85,1.7742]
[1723756003108,0.05018873,140.96,140.93,0.04565232]
[1723756004002,1.773,140.95,140.93,0.04565232]
[1723756004707,0.05018873,140.96,140.93,0.04565232]
[1723756004708,1.7731,140.94,140.93,0.04565232]
[1723756005704,1.773,140.95,140.93,0.04565232]
[1723756006104,0.05018873,140.96,140.93,0.04565232]
[1723756012716,0.05018873,140.96,140.94,1.7731]
[1723756012908,0.05018873,140.96,140.93,0.04565232]
[1723756013106,0.05018873,140.96,140.93,1.81885232]
[1723756013509,0.05018873,140.96,140.93,0.04565232]
[1723756014719,0.05018873,140.96,140.93,1.81885232]
[1723756014903,0.05018873,140.96,140.93,0.04565232]
[1723756015104,1.82308873,140.96,140.93,0.04565232]
[1723756015509,0.05018873,140.96,140.93,0.04565232]
[1723756017606,0.05018873,140.96,140.93,3.31565232]
[1723756018112,0.05018873,140.96,140.94,1.7731]
[1723756018909,3.59254995,141.01,140.95,1.773]
[1723756019218,1.271,141.05,140.93,1.4967]
[1723756020217,0.05351467,141.0,140.98,0.05219856]
[1723756020416,3.56672177,141.0,140.87,3.0978]
[1723756020613,1.271,141.05,140.87,3.0978]
[1723756020921,8.68,141.0,140.87,3.0978]
[1723756021111,12.20455605,141.0,140.87,3.0978]
[1723756021520,1.7733,140.93,140.87,3.0978]
[1723756021720,3.60648123,140.92,140.87,3.0978]
[1723756021922,3.63343497,140.91,140.83,8.68]
[1723756022117,0.05119545,140.95,140.83,8.68]
[1723756022317,0.05119545,140.95,140.85,1.7743]
[1723756022818,3.52455605,141.0,140.86,0.05246564]
[1723756023116,0.04529777,140.91,140.83,8.68]
[1723756023323,5.29170861,140.98,140.92,0.05120751]
[1723756023617,0.05448896,140.96,140.86,3.50988328]
[1723756023924,1.271,141.05,140.87,3.1428]
[1723756023925,3.6354897,141.01,140.87,3.1428]
[1723756024214,1.271,141.05,140.9,0.04787257]
[1723756024420,0.7117,141.06,140.91,8.68]
[1723756024734,0.05439314,140.99,140.96,0.05142496]
[1723756024918,1.772,141.03,140.97,1.7728]
[1723756025119,0.05280365,140.99,140.97,1.7728]
[1723756025319,0.05280365,140.99,140.96,0.04911546]
[1723756025518,1.7719,141.04,140.97,1.7726]
[1723756025719,1.7719,141.04,140.97,4.7779]
[1723756025917,1.7719,141.04,140.97,3.0053]
[1723756026324,1.7719,141.04,140.97,4.778]
[1723756026519,1.7719,141.04,140.97,3.0053]
[1723756026826,0.04771875,141.02,141.0,1.7724]
[1723756027016,3.47440124,141.1,140.98,8.68]
[1723756027218,1.7711,141.1,140.98,8.68]
[1723756027523,1.3736,141.15,140.98,8.68]
[1723756027822,45.6114905,141.19,140.98,8.68]
[1723756028125,49.16887926,141.19,140.98,12.25334594]
[1723756028323,0.05104828,141.1,141.07,0.05326328]
[1723756028816,3.57121832,141.11,141.06,8.68]
[1723756029015,49.16887926,141.19,141.06,8.68]
[1723756029721,0.04618054,141.1,141.07,0.0480278]
[1723756030526,49.16887926,141.19,141.06,8.68]
[1723756030924,0.05357997,141.1,141.07,0.05193441]
[1723756031226,49.16887926,141.19,141.07,1.6293]
[1723756031430,0.0466631,141.1,141.07,1.68247872]
[1723756031618,49.16887926,141.19,141.07,1.6293]
[1723756031820,0.04567361,141.1,141.07,0.05115288]
[1723756032119,49.16887926,141.19,141.06,8.68]
[1723756032323,0.04638107,141.1,141.07,4.66189983]
[1723756032523,49.16887926,141.19,141.07,4.6124]
[1723756032731,0.04630139,141.1,141.07,4.65724684]
[1723756032923,1.7705,141.15,141.07,4.6124]
[1723756033320,1.7705,141.15,141.07,4.66560011]
[1723756033321,0.0516035,141.1,141.07,4.66560011]
[1723756033914,1.7706,141.14,141.07,6.43700011]
[1723756034628,1.7708,141.13,141.07,4.66560011]
[1723756035030,1.7708,141.13,141.07,4.6124]
[1723756035324,1.7708,141.13,141.09,0.04559927]
[1723756035325,0.04676327,141.11,141.09,0.04559927]
[1723756037422,8.68,141.23,141.09,0.04559927]
[1723756037628,1.7704,141.16,141.09,1.7711]
[1723756037929,2.8521,141.22,141.07,4.6124]
[1723756038127,8.68,141.23,141.07,4.6124]
[1723756038349,3.61130034,141.23,141.07,4.6124]
[1723756038624,52.09247041,141.26,141.07,4.6124]
[1723756038625,0.04352535,141.16,141.14,0.04681461]
[1723756039029,1.77,141.2,141.14,1.7706]
[1723756039338,0.04352535,141.16,141.14,0.0449314]
[1723756039627,0.56431173,141.25,141.13,8.32]
[1723756040025,52.09247041,141.26,141.13,8.32]
[1723756040625,52.09247041,141.26,141.11,8.32]
[1723756040626,0.56430665,141.25,141.11,8.32]
[1723756040930,0.56430665,141.25,141.18,0.04871676]
[1723756041133,0.56430665,141.25,141.07,12.9324]
[1723756041337,1.7706,141.15,141.08,1.7714]
[1723756041634,8.32,141.21,141.07,3.1149]
[1723756041928,1.771,141.12,141.07,3.1149]
[1723756042131,2.2862,141.2,141.07,3.1149]
[1723756042335,0.04871676,141.11,141.08,0.05230574]
[1723756042629,2.2862,141.2,141.03,8.32]
[1723756042826,0.04871676,141.11,141.08,1.8229121]
[1723756043023,2.2862,141.2,141.03,8.32]
[1723756043529,0.04871676,141.11,141.08,0.0489484]
[1723756043826,3.61333507,141.13,141.03,8.32]
[1723756044025,2.2862,141.2,141.03,8.32]
[1723756044223,0.04871676,141.11,141.08,0.04935761]
[1723756044531,0.04871676,141.11,140.99,1.5734]
[1723756044532,8.32,141.1,140.99,1.5734]
[1723756044723,2.3174,141.09,140.99,1.5734]
[1723756045727,0.04771056,141.05,141.03,0.04567146]
[1723756049134,8.32,141.15,141.03,0.04567146]
[1723756049438,11.93978663,141.21,141.02,8.32]
[1723756049634,3.41157378,141.2,141.02,8.32]
[1723756049833,1.7713,141.09,141.02,8.32]
[1723756050132,2.8459,141.2,141.02,8.32]
[1723756050332,0.56583344,141.19,141.02,8.32]
[1723756050529,0.05036381,141.07,141.04,0.0456669]
[1723756050731,3.52812357,141.11,141.03,1.772]
[1723756050944,0.05036381,141.07,141.04,1.82530816]
[1723756051137,0.05036381,141.07,141.04,0.05350816]
[1723756051840,3.62099691,141.15,141.04,0.05350816]
[1723756052038,3.50777526,141.14,141.05,1.7717]
[1723756052229,2.8459,141.2,141.02,8.32]
[1723756052838,2.8459,141.2,141.06,1.7716]
[1723756053141,2.8459,141.2,141.1,0.04745681]
[1723756053528,2.8459,141.2,141.05,1.7717]
[1723756053731,1.7705,141.15,141.14,0.05315601]
[1723756053941,3.49076271,141.15,141.06,1.7716]
[1723756054245,2.8459,141.2,141.02,8.32]
[1723756054441,0.56580598,141.19,141.09,0.05352891]
[1723756054847,0.56580598,141.19,141.02,8.32]
[1723756055039,2.8459,141.2,141.13,0.04727431]
[1723756055340,2.8459,141.2,141.02,8.32]
[1723756055535,2.8459,141.2,141.15,0.04889751]
[1723756055730,2.8459,141.2,141.06,1.7716]
[1723756055941,2.8459,141.2,141.16,0.04480692]
[1723756056142,1.7707,141.14,141.06,1.7716]
[1723756056439,1.7707,141.14,141.02,8.32]
[1723756056440,2.8459,141.2,141.02,8.32]
[1723756056639,0.0533265,141.11,141.02,8.32]
[1723756056941,1.7708,141.13,141.05,1.7716]
[1723756057641,0.05179865,141.1,141.08,0.05137192]
[1723756063950,3.45976414,141.16,141.08,0.05137192]
[1723756064244,1.7698,141.21,141.09,7.96]
[1723756064443,3.53887706,141.22,141.1,1.6305]
[1723756064643,0.5246,141.26,141.16,1.7704]
[1723756064847,4.09607058,141.26,141.11,1.5917]
[1723756065037,0.5246,141.26,141.12,7.96]
[1723756065238,0.5246,141.26,141.17,0.0515576]
[1723756065749,3.98960148,141.26,141.13,1.7707]
[1723756066052,0.5246,141.26,141.2,0.04718704]
[1723756066543,1.7698,141.21,141.2,0.04718704]
[1723756066851,5.29711274,141.21,141.2,0.04718704]
[1723756069144,0.5246,141.26,141.2,0.04718704]
[1723756069352,2.4242,141.31,141.2,0.04718704]
[1723756069551,3.0001,141.31,141.2,0.04718704]
[1723756069849,3.0001,141.31,141.13,1.4762]
[1723756070151,1.7692,141.25,141.24,0.05233388]
[1723756070352,3.5168334,141.25,141.13,1.4762]
[1723756070647,3.0001,141.31,141.23,0.04469274]
[1723756070850,3.0001,141.31,141.17,1.7702]
[1723756071247,3.0001,141.31,141.26,0.04513905]
[1723756071453,3.0001,141.31,141.19,1.5423]
[1723756071641,3.0001,141.31,141.27,0.04906251]
[1723756072056,0.56490908,141.3,141.16,7.6]
[1723756072346,0.56497963,141.29,141.28,0.04621914]
[1723756072552,1.7698,141.21,141.14,10.9129]
[1723756072948,3.55467771,141.21,141.16,0.05276467]
[1723756073155,7.6,141.25,141.16,0.05276467]
[1723756073349,11.18052348,141.25,141.13,1.4762]
[1723756073551,1.7701,141.19,141.13,1.4762]
[1723756073740,11.18052348,141.25,141.13,1.4762]
[1723756073945,11.18052348,141.25,141.15,0.04998736]
[1723756074146,1.7701,141.19,141.13,1.4762]
[1723756074543,11.18052348,141.25,141.15,0.05323017]
[1723756075056,11.18052348,141.25,141.19,0.05035844]
[1723756075851,1.7699,141.2,141.19,0.05035844]
[1723756076757,11.18052348,141.25,141.12,3.1545]
[1723756077252,1.7701,141.19,141.12,3.1545]
[1723756077855,0.04623965,141.17,141.14,0.04491704]
[1723756080168,0.04623965,141.17,141.14,1.81541704]
[1723756080563,0.04623965,141.17,141.14,0.04491704]
[1723756081469,3.65822774,141.17,141.14,0.04491704]
[1723756081663,0.04623965,141.17,141.14,0.04491704]
[1723756081967,3.62013277,141.16,141.14,0.04491704]
[1723756083370,0.04623965,141.17,141.14,0.04491704]
[1723756083872,1.7705,141.16,141.14,0.04491704]
[1723756084556,0.04623965,141.17,141.14,0.04491704]
[1723756086063,0.04623965,141.17,141.14,1.81541704]
[1723756087161,0.04623965,141.17,141.14,0.04491704]
[1723756090368,0.04623965,141.17,141.15,1.7704]
[1723756091073,0.8541,141.3,141.16,7.26]
[1723756091280,2.4166,141.3,141.16,7.26]
[1723756092178,5.91679341,141.3,141.22,0.05321345]
[1723756092477,1.7693,141.25,141.22,0.05321345]
[1723756092781,3.59473581,141.24,141.22,0.05321345]
[1723756094274,2.4166,141.3,141.16,7.26]
[1723756094476,0.5621447,141.29,141.16,7.26]
[1723756095578,0.05320788,141.24,141.21,0.05047844]
[1723756095775,7.26,141.23,141.12,3.1545]
[1723756095976,7.828,141.23,141.12,3.1545]
[1723756096974,7.828,141.23,141.16,0.04589674]
[1723756096975,0.05349647,141.19,141.16,0.04589674]
[1723756097473,3.65632519,141.19,141.16,0.04589674]
[1723756097673,0.05349647,141.19,141.16,0.04589674]
[1723756097868,3.55337147,141.19,141.16,0.04589674]
[1723756098073,0.05349647,141.19,141.16,0.04589674]
[1723756098581,3.58027083,141.18,141.16,0.04589674]
[1723756099675,1.7702,141.18,141.16,0.04589674]
[1723756099881,5.3306375,141.18,141.16,0.04589674]
[1723756100170,3.5604375,141.18,141.16,0.04589674]
[1723756100771,1.7702,141.18,141.16,0.04589674]
[1723756100969,5.31753333,141.18,141.16,0.04589674]
[1723756101170,1.7702,141.18,141.16,0.04589674]
[1723756101378,5.36180416,141.18,141.16,0.04589674]
[1723756102382,3.59160416,141.18,141.16,0.04589674]
[1723756102676,0.05349647,141.19,141.16,0.04589674]
[1723756102884,0.05349647,141.19,140.87,3.5481]
[1723756103079,0.05349647,141.19,140.9,2.88558669]
[1723756103275,0.05349647,141.19,140.91,1.30178669]
[1723756103276,28.32,141.18,140.91,1.30178669]
[1723756103575,7.84275286,141.17,140.91,1.30178669]
[1723756103775,10.8829375,141.17,140.91,4.90295335]
[1723756103972,10.8829375,141.17,140.9,4.7395]
[1723756103973,7.84327501,141.16,140.9,4.7395]
[1723756104173,7.28,141.15,140.91,1.30227719]
[1723756104374,8.7886,141.15,140.91,1.30227719]
[1723756104574,0.0540834,141.05,141.03,0.05286556]
[1723756104786,3.59030739,141.1,141.03,0.05286556]
[1723756105084,1.7713,141.09,141.03,0.05286556]
[1723756105282,7.28,141.14,140.98,3.0376]
[1723756105684,7.8478,141.14,140.98,3.0376]
[1723756105885,7.8478,141.14,141.05,0.04537963]
[1723756105886,0.04679833,141.07,141.05,0.04537963]
[1723756106281,0.0542489,141.07,141.05,0.05013319]
[1723756106482,0.0542489,141.07,140.98,3.0376]
[1723756106678,7.28,141.08,140.98,3.0376]
[1723756106986,1.7718,141.05,140.98,3.0376]
[1723756107187,3.59800695,141.05,140.98,3.0376]
[1723756107388,1.772,141.03,140.98,3.0376]
[1723756107584,3.51150446,141.02,141.0,0.04873758]
[1723756108187,3.51150446,141.02,140.92,7.28]
[1723756108488,3.49306951,141.02,140.92,1.7733]
[1723756108688,7.28,141.02,140.92,1.7733]
[1723756108885,10.75144389,141.02,140.89,1.7738]
[1723756109277,10.75144389,141.02,140.86,4.7366]
[1723756109482,0.04621412,140.97,140.94,0.0484729]
[1723756110980,1.773,140.96,140.94,0.0484729]
[1723756111579,1.81901412,140.97,140.94,0.0484729]
[1723756111985,0.04621412,140.97,140.94,0.0484729]
[1723756112788,1.773,140.95,140.94,0.0484729]
[1723756113183,0.04621412,140.97,140.86,4.7366]
[1723756113387,1.7733,140.93,140.86,4.7366]
[1723756113585,7.28,140.96,140.86,4.7366]
[1723756114292,0.04943583,140.92,140.9,0.05354719]
[1723756114493,3.52666864,140.92,140.9,0.05354719]
[1723756115888,0.04943583,140.92,140.9,0.05354719]
[1723756120690,1.7735,140.91,140.9,0.05354719]
[1723756121590,7.28,140.97,140.9,0.05354719]
[1723756121893,7.106,141.16,140.9,10.93674824]
[1723756121894,1.4702,141.12,140.9,10.93674824]
[1723756122084,6.24148858,141.06,140.97,1.7727]
[1723756122291,1.0,141.06,140.9,7.28]
[1723756122798,0.7147,141.05,140.9,7.28]
[1723756122994,0.04477098,140.99,140.97,0.05327218]
[1723756123392,8.7502,141.04,140.97,0.05327218]
[1723756123593,0.04998409,140.99,140.97,0.05327218]
[1723756123795,8.7502,141.04,140.97,0.05327218]
[1723756124193,0.0447884,140.99,140.97,0.05327218]
[1723756124494,8.7502,141.04,140.97,0.05327218]
[1723756124891,0.05441977,140.99,140.97,0.05327218]
[1723756125096,0.05141276,140.99,140.97,0.05327218]
[1723756127400,0.05141276,140.99,140.91,3.79467218]
[1723756127694,3.47759463,141.05,140.91,3.79467218]
[1723756128001,3.47759463,141.05,140.98,0.7726]
[1723756128202,3.47759463,141.05,140.91,3.79467218]
[1723756128502,3.47759463,141.05,140.99,1.7724]
[1723756128896,0.04578482,141.03,141.01,0.04601172]
[1723756133992,1.81778482,141.03,141.01,0.04601172]
[1723756134197,0.04578482,141.03,141.01,0.04601172]
[1723756134398,0.04578482,141.03,140.92,1.6147]
[1723756134597,7.99853368,141.05,140.92,1.6147]
[1723756135308,3.49923368,141.05,140.92,1.6147]
[1723756135503,0.05027615,141.0,140.97,1.82477132]
[1723756135698,0.05027615,141.0,140.97,0.05207132]
[1723756136899,0.05027615,141.0,140.98,1.7726]
[1723756137899,0.05027615,141.0,140.98,4.8894]
[1723756138704,0.05027615,141.0,140.98,3.1168]
[1723756139606,0.05027615,141.0,140.98,1.6218]
[1723756141994,0.05027615,141.0,140.97,0.05207132]
[1723756142607,0.05027615,141.0,140.97,1.82487132]
[1723756143195,0.05027615,141.0,140.97,0.05207132]
[1723756144304,0.05027615,141.0,140.98,1.7726]
[1723756144501,0.05027615,141.0,140.97,0.05207132]
[1723756145903,0.05027615,141.0,140.97,1.82477132]
[1723756146804,0.05027615,141.0,140.97,0.05207132]
[1723756147706,1.7726,140.98,140.97,0.05207132]
[1723756148005,0.05027615,141.0,140.97,0.05207132]
[1723756148800,1.7726,140.98,140.97,0.05207132]
[1723756149008,0.05027615,141.0,140.97,0.05207132]
[1723756149403,1.7726,140.98,140.97,0.05207132]
[1723756150711,1.7725,140.99,140.97,0.05207132]
[1723756151705,0.05027615,141.0,140.97,0.05207132]
[1723756153409,1.82267615,141.0,140.97,0.05207132]
[1723756154308,1.7725,140.99,140.97,0.05207132]
[1723756154509,0.05027615,141.0,140.97,0.05207132]
[1723756155610,1.7726,140.98,140.97,0.05207132]
[1723756162113,0.05027615,141.0,140.97,0.05207132]
[1723756162508,0.05027615,141.0,140.89,1.4952]
[1723756162707,0.05027615,141.0,140.87,1.6213]
[1723756162914,7.28,140.99,140.87,1.6213]
[1723756163118,1.7733,140.93,140.87,1.6213]
[1723756163419,3.53006423,140.93,140.87,1.6213]
[1723756163609,7.28,140.99,140.87,1.6213]
[1723756163817,1.82587368,140.91,140.89,0.0512903]
[1723756164114,0.05068448,140.91,140.85,7.28]
[1723756164309,3.51334045,140.91,140.89,0.04791887]
[1723756164509,1.7737,140.9,140.89,0.04791887]
[1723756167616,10.79334045,140.91,140.78,1.5348]
[1723756167816,1.4917,140.89,140.78,1.5348]
[1723756168014,1.7742,140.86,140.78,3.3099]
[1723756168520,1.7743,140.85,140.78,3.3099]
[1723756168721,0.04853565,140.83,140.81,0.04740142]
[1723756169111,1.7744,140.84,140.81,0.04740142]
[1723756169313,0.05278301,140.83,140.81,0.04740142]
[1723756169619,3.57507174,140.82,140.81,0.04740142]
[1723756169825,0.05278301,140.83,140.81,0.04740142]
[1723756171129,3.6244198,140.82,140.81,0.04740142]
[1723756171715,0.05278301,140.83,140.81,0.04740142]
[1723756172419,3.68536832,140.83,140.81,0.04740142]
[1723756172624,1.82728301,140.83,140.81,0.04740142]
[1723756173520,5.29041379,140.83,140.81,0.04740142]
[1723756176423,3.51591379,140.83,140.81,0.04740142]
[1723756180023,5.29041379,140.83,140.81,0.04740142]
[1723756181729,1.7746,140.82,140.81,0.04740142]
[1723756185126,1.7749,140.81,140.73,3.3221]
[1723756185830,1.7749,140.8,140.73,3.3221]
[1723756186330,0.04578925,140.78,140.75,0.05342732]
[1723756186526,3.53131426,140.78,140.75,0.05342732]
[1723756187130,0.04578925,140.78,140.75,0.05342732]
[1723756193033,1.82098925,140.78,140.75,0.05342732]
[1723756194138,0.04578925,140.78,140.75,0.05342732]
[1723756195429,1.82098925,140.78,140.75,0.05342732]
[1723756195834,0.04578925,140.78,140.75,0.05342732]
[1723756198334,0.04578925,140.78,140.76,1.7754]
[1723756199539,0.04578925,140.78,140.75,0.05342732]
[1723756199933,1.7753,140.77,140.75,0.05342732]
[1723756200237,0.04578925,140.78,140.75,0.05342732]
[1723756200436,1.7754,140.76,140.75,0.05342732]
[1723756200636,0.04578925,140.78,140.66,4.7342]
[1723756201037,8.9138,140.79,140.66,4.7342]
[1723756201338,8.9138,140.79,140.67,3.60043478]
[1723756201541,1.6338,140.79,140.67,3.60043478]
[1723756201839,0.05342242,140.74,140.72,0.0478646]
[1723756202036,1.6338,140.79,140.72,0.0478646]
[1723756202243,1.0,140.8,140.72,0.0478646]
[1723756202429,0.04989687,140.74,140.72,0.0478646]
[1723756202628,1.0,140.8,140.72,0.0478646]
[1723756202833,0.05357009,140.74,140.72,0.0478646]
[1723756203031,1.0,140.8,140.73,7.28]
[1723756203241,1.0,140.8,140.74,4.7305]
[1723756204340,0.05212524,140.78,140.76,0.0530813]
[1723756208341,3.0336,140.89,140.76,3.64631483]
[1723756208548,3.0336,140.89,140.76,0.0530813]
[1723756208939,1.7743,140.85,140.76,0.0530813]
[1723756209143,1.7743,140.85,140.76,3.61861721]
[1723756209540,0.04942734,140.81,140.76,3.61861721]
[1723756209740,1.7743,140.85,140.8,1.7748]
[1723756209974,7.26,140.93,140.81,1.5484]
[1723756210339,7.26,140.93,140.82,1.7745]
[1723756210945,1.82558452,140.86,140.83,0.0495595]
[1723756211152,0.05138452,140.86,140.83,0.0495595]
[1723756213248,1.82558452,140.86,140.83,0.0495595]
[1723756214046,1.7743,140.85,140.83,0.0495595]
[1723756214350,0.05138452,140.86,140.83,0.0495595]
[1723756214748,1.82558452,140.86,140.83,0.0495595]
[1723756217654,1.7744,140.84,140.83,0.0495595]
[1723756219855,0.05138452,140.86,140.71,1.5878]
[1723756220044,1.7749,140.81,140.74,1.7756]
[1723756220250,3.59195752,140.81,140.72,3.0675]
[1723756220448,1.5754,140.85,140.72,10.3275]
[1723756221154,1.7751,140.79,140.77,0.04557719]
[1723756221360,3.5035696,140.78,140.77,0.04557719]
[1723756221757,0.05363413,140.8,140.62,227.0]
[1723756222052,0.56594632,140.84,140.66,1.5167]
[1723756222251,7.82597879,140.83,140.69,1.7763]
[1723756222453,3.48901576,140.85,140.69,1.7763]
[1723756222651,7.82597871,140.84,140.66,1.5167]
[1723756222956,0.04719129,140.76,140.74,0.04783462]
[1723756223154,3.61786377,140.75,140.69,1.7763]
[1723756223345,1.8204171,140.76,140.74,0.04924227]
[1723756223553,1.7755,140.76,140.68,1.7764]
[1723756223763,1.82536741,140.76,140.74,0.04766206]
[1723756223954,1.82536741,140.76,140.74,0.05191666]